fUST/lending_fUST_20250130
["ID","MTS","AMOUNT","RATE_DAILY","PERIOD"]
[350957717,1738246232298,-153.56,0.000213,31]
[350957720,1738246232307,-153.56,0.000213,31]
[350957721,1738246232316,-153.56,0.000213,31]
[350957723,1738246232326,-153.56,0.000213,31]
[350957725,1738246232335,-153.56,0.000213,31]
[350957727,1738246232345,-497.2184366,0.00021397,2]
[350957729,1738246232355,-154.1572399,0.00021397,2]
[350957732,1738246232364,-255.05281814,0.000216,4]
[350957751,1738246238051,-1188.01018729,0.000216,4]
[350957773,1738246240641,-88.51198318,0.000216,4]
[350957825,1738246245742,-8237.42501139,0.000216,4]
[350957827,1738246245752,-160.0,0.00021699,2]
[350957829,1738246245761,-506.95375784,0.00021708,30]
[350957830,1738246245771,-161.87,0.00021794,2]
[350957832,1738246245781,-157.0,0.00021823,2]
[350957834,1738246245791,-157.0,0.00021823,2]
[350957836,1738246245800,-157.0,0.00021823,2]
[350957837,1738246245811,-157.0,0.00021823,2]
[350957838,1738246245821,-157.0,0.00021823,2]
[350957839,1738246245831,-157.0,0.00021823,2]
[350957840,1738246245840,-157.0,0.00021823,2]
[350957841,1738246245849,-157.0,0.00021823,2]
[350957842,1738246245860,-157.0,0.00021823,2]
[350957844,1738246245869,-157.0,0.00021823,2]
[350957846,1738246245879,-157.0,0.00021823,2]
[350957848,1738246245888,-157.0,0.00021823,2]
[350957849,1738246245897,-157.0,0.00021823,2]
[350957851,1738246245907,-157.0,0.00021823,2]
[350957853,1738246245916,-157.0,0.00021823,2]
[350957854,1738246245926,-157.0,0.00021823,2]
[350957855,1738246245935,-157.0,0.00021823,2]
[350957857,1738246245944,-157.0,0.00021823,2]
[350957859,1738246245954,-158.0,0.00021823,2]
[350957860,1738246245963,-286.21832593,0.00021918,2]
[350957861,1738246245973,-1168.669,0.00021999,7]
[350957862,1738246245982,-265.699,0.00021999,2]
[350957863,1738246245991,-500.0,0.00021999,2]
[350957864,1738246246000,-499.0,0.00021999,2]
[350957865,1738246246010,-16721.79194212,0.00022,5]
[350957866,1738246246019,-11138.32802726,0.00022,5]
[350957867,1738246246029,-344075.55549847,0.00022,30]
[350957868,1738246246038,-150.0,0.00022,2]
[350957869,1738246246047,-343.0,0.00022,2]
[350957870,1738246246058,-3642.1,0.000221,2]
[350957871,1738246246067,-151.0,0.000221,5]
[350957872,1738246246076,-11616.80025264,0.00022108,3]
[350957873,1738246246086,-343.0,0.00022192,2]
[350957874,1738246246096,-2000.0,0.000222,2]
[350957875,1738246246105,-151.0,0.000222,10]
[350957876,1738246246118,-151.0,0.000222,9]
[350957877,1738246246127,-151.0,0.000222,8]
[350957878,1738246246137,-151.644664,0.00022204,7]
[350957879,1738246246146,-154.42,0.00022204,2]
[350957880,1738246246156,-151.0,0.00022206,7]
[350957881,1738246246165,-160.649674,0.00022206,7]
[350957882,1738246246175,-151.0,0.00022206,7]
[350957883,1738246246184,-151.0,0.00022206,7]
[350957884,1738246246194,-151.0,0.00022206,7]
[350957885,1738246246204,-151.0,0.00022206,7]
[350957886,1738246246213,-151.0,0.00022206,7]
[350957887,1738246246223,-159.331682,0.00022206,7]
[350957888,1738246246232,-151.0,0.00022206,7]
[350957889,1738246246242,-151.0,0.00022206,7]
[350957890,1738246246251,-151.0,0.00022206,7]
[350957891,1738246246261,-151.0,0.00022206,7]
[350957892,1738246246270,-151.0,0.00022206,7]
[350957893,1738246246280,-151.0,0.00022206,7]
[350957894,1738246246290,-296.766994,0.00022206,7]
[350957895,1738246246299,-151.0,0.00022206,7]
[350957896,1738246246309,-151.0,0.00022206,7]
[350957897,1738246246318,-151.0,0.00022206,7]
[350957898,1738246246328,-151.0,0.00022206,7]
[350957899,1738246246338,-151.0,0.00022206,7]
[350957900,1738246246347,-151.0,0.00022206,7]
[350957901,1738246246356,-160.0,0.00022206,7]
[350957902,1738246246368,-151.0,0.00022207,7]
[350957903,1738246246377,-151.0,0.00022207,7]
[350957904,1738246246387,-151.0,0.00022207,7]
[350957905,1738246246396,-154.160052,0.00022207,7]
[350957906,1738246246406,-151.0,0.00022207,7]
[350957907,1738246246416,-151.0,0.00022207,7]
[350957908,1738246246426,-259.68538367,0.00022207,7]
[350957909,1738246246435,-151.0,0.00022207,7]
[350957910,1738246246445,-151.0,0.00022207,7]
[350957911,1738246246455,-151.0,0.00022207,7]
[350957912,1738246246464,-151.0,0.00022207,7]
[350957913,1738246246474,-500.0,0.00022207,2]
[350957914,1738246246483,-500.0,0.00022207,2]
[350957915,1738246246493,-500.0,0.00022207,2]
[350957916,1738246246502,-500.0,0.00022207,2]
[350957917,1738246246512,-531.913702,0.00022207,2]
[350957918,1738246246521,-3213361.87259607,0.00022208,61]
[350957919,1738246246531,-1637503.8435169,0.00022208,61]
[350957920,1738246255293,165.793088,0.00019679,15]
[350957921,1738246262991,500.0,0.00018089,2]
[350957922,1738246263383,500.0,0.00018226,2]
[350957923,1738246263663,500.0,0.00018363,2]
[350957924,1738246263961,500.0,0.000185,2]
[350957925,1738246264211,500.0,0.00018637,2]
[350957926,1738246264515,500.0,0.00018774,2]
[350957927,1738246264787,500.0,0.00018911,2]
[350957934,1738246319345,500.0,0.00019999,2]
[350957935,1738246320582,256.03679004,0.0002005,2]
[350957936,1738246336814,500.0,0.0001754,2]
[350957940,1738246572375,911.28,0.0002045,120]
[350957942,1738247063868,215.326833,0.00013973,2]
[350957943,1738247131179,-2187.02351704,0.00016979,2]
[350957944,1738247131200,-205.0468682,0.00017151,2]
[350957945,1738247131223,-500.0,0.00017499,2]
[350957946,1738247131245,-201.90177402,0.00017499,2]
[350957947,1738247131267,-500.0,0.00017499,2]
[350957948,1738247131287,-500.0,0.0001754,2]
[350957949,1738247131310,-500.0,0.00017636,2]
[350957950,1738247131331,-500.0,0.00017677,2]
[350957951,1738247131352,-500.0,0.00017773,2]
[350957952,1738247131374,-500.0,0.0001791,2]
[350957953,1738247131395,-343.7913047,0.00017924,2]
[350957954,1738247131418,-500.0,0.00018047,2]
[350957955,1738247131439,-500.0,0.00018184,2]
[350957956,1738247131461,-300.0,0.00018318,2]
[350957957,1738247131483,-500.0,0.00018321,2]
[350957958,1738247131505,-500.0,0.00018458,2]
[350957959,1738247131527,-500.0,0.00018595,2]
[350957960,1738247131548,-150.0,0.000186,2]
[350957961,1738247131569,-156.59,0.00018637,2]
[350957962,1738247131591,-188.13,0.00018732,2]
[350957963,1738247131613,-500.0,0.00019176,2]
[350957964,1738247131634,-500.0,0.00019177,2]
[350957965,1738247131655,-500.0,0.00019177,2]
[350957966,1738247131677,-457.16452811,0.00019177,2]
[350957967,1738247131699,-500.0,0.00019177,2]
[350957968,1738247131723,-500.0,0.00019177,2]
[350957969,1738247131745,-500.0,0.00019177,2]
[350957970,1738247131767,-500.0,0.00019177,2]
[350957971,1738247131789,-500.0,0.00019177,2]
[350957972,1738247131813,-500.0,0.00019177,2]
[350957973,1738247131839,-672.31,0.00019177,2]
[350957974,1738247131865,-934.52,0.00019177,2]
[350957975,1738247131886,-500.0,0.00019177,2]
[350957976,1738247131907,-500.0,0.00019177,2]
[350957977,1738247131930,-500.0,0.00019177,2]
[350957978,1738247131953,-500.0,0.00019177,2]
[350957979,1738247131980,-558.16,0.00019177,2]
[350957980,1738247132002,-500.0,0.00019177,2]
[350957981,1738247132027,-356.5315764,0.00019177,2]
[350957984,1738247174178,343.3317932,0.00020453,120]
[350957985,1738247245106,-233.57899129,0.00019078,2]
[350958046,1738247351116,-150.0,0.00019,2]
[350958047,1738247351139,-319.82969583,0.00019078,2]
[350958048,1738247351159,-300.0,0.00019098,2]
[350958049,1738247351180,-14005.01884497,0.00019099,2]
[350958050,1738247351202,-19706.52003831,0.0001917,7]
[350958051,1738247351227,-895.58,0.00019176,2]
[350958052,1738247351251,-500.0,0.00019176,2]
[350958053,1738247351272,-534.9,0.00019176,2]
[350958054,1738247351295,-565.33,0.00019176,2]
[350958055,1738247351318,-500.0,0.00019176,2]
[350958056,1738247351342,-500.0,0.00019176,2]
[350958057,1738247351366,-1138.31,0.00019176,2]
[350958058,1738247351387,-500.0,0.00019176,2]
[350958059,1738247351409,-500.0,0.00019176,2]
[350958060,1738247351432,-1408.52,0.00019176,2]
[350958061,1738247351454,-500.0,0.00019176,2]
[350958062,1738247351474,-539.85950412,0.00019177,2]
[350958063,1738247351494,-500.0,0.00019177,2]
[350958064,1738247351516,-500.0,0.00019177,2]
[350958065,1738247351539,-500.0,0.00019177,2]
[350958066,1738247351559,-500.0,0.00019177,2]
[350958067,1738247351580,-500.0,0.00019177,2]
[350958068,1738247351601,-500.0,0.00019177,2]
[350958069,1738247351623,-500.0,0.00019177,2]
[350958070,1738247351645,-884.08,0.00019177,2]
[350958071,1738247351667,-500.0,0.00019177,2]
[350958072,1738247351689,-500.0,0.00019177,2]
[350958073,1738247351712,-500.0,0.00019177,2]
[350958074,1738247351736,-500.0,0.00019177,2]
[350958075,1738247351763,-684.75,0.00019177,2]
[350958076,1738247351789,-644.3,0.00019177,2]
[350958077,1738247351813,-500.0,0.00019177,2]
[350958078,1738247351835,-500.0,0.00019177,2]
[350958079,1738247351859,-500.0,0.00019177,2]
[350958080,1738247351881,-500.0,0.00019177,2]
[350958081,1738247351903,-500.0,0.00019177,2]
[350958082,1738247351924,-500.0,0.00019177,2]
[350958083,1738247351945,-506.14008268,0.00019177,2]
[350958084,1738247351969,-500.0,0.00019177,2]
[350958085,1738247351993,-500.0,0.00019177,2]
[350958086,1738247352016,-632.42,0.00019177,2]
[350958087,1738247352039,-500.0,0.00019177,2]
[350958088,1738247352063,-500.0,0.00019177,2]
[350958089,1738247352087,-500.0,0.00019177,2]
[350958090,1738247352222,-500.0,0.00019177,2]
[350958091,1738247352249,-4365.7224624,0.00019177,2]
[350958092,1738247352372,-3482.8075376,0.00019177,2]
[350958093,1738247352397,-500.0,0.00019177,2]
[350958094,1738247352420,-257.81925144,0.00019177,2]
[350958095,1738247352444,-500.0,0.00019177,2]
[350958096,1738247352471,-500.0,0.00019177,2]
[350958097,1738247352497,-955.91,0.00019177,2]
[350958098,1738247352522,-500.0,0.00019177,2]
[350958099,1738247352548,-500.0,0.00019177,2]
[350958100,1738247352576,-500.0,0.00019177,2]
[350958101,1738247352601,-500.0,0.00019177,2]
[350958102,1738247352628,-617.08,0.00019177,2]
[350958103,1738247352652,-500.0,0.00019177,2]
[350958104,1738247352678,-500.0,0.00019177,2]
[350958105,1738247352701,-500.0,0.00019177,2]
[350958106,1738247352726,-500.0,0.00019177,2]
[350958107,1738247352750,-500.0,0.00019177,2]
[350958108,1738247352773,-500.0,0.00019177,2]
[350958109,1738247352797,-500.0,0.00019177,2]
[350958110,1738247352820,-500.0,0.00019177,2]
[350958111,1738247352844,-500.0,0.00019177,2]
[350958112,1738247352867,-225.8190541,0.00019177,2]
[350958113,1738247352889,-500.0,0.00019177,2]
[350958114,1738247352912,-500.0,0.00019177,2]
[350958115,1738247352936,-500.0,0.00019177,2]
[350958116,1738247352958,-500.0,0.00019178,2]
[350958117,1738247352981,-260.225,0.00019178,2]
[350958118,1738247353004,-500.0,0.00019178,7]
[350958119,1738247353025,-1000.0,0.00019178,2]
[350958120,1738247353051,-250.364077,0.00019178,2]
[350958121,1738247353072,-22989.9100067,0.00019178,11]
[350958122,1738247353096,-582.49736995,0.00019313,2]
[350958151,1738247360151,-656.22,0.00019176,2]
[350958152,1738247360172,-500.0,0.00019177,2]
[350958153,1738247360195,-500.0,0.00019177,2]
[350958154,1738247360219,-313.08263005,0.00019313,2]
[350958155,1738247360242,-500.0,0.00019313,2]
[350958156,1738247360264,-534.9,0.00019313,2]
[350958157,1738247360289,-565.33,0.00019313,2]
[350958158,1738247360311,-500.0,0.00019313,2]
[350958159,1738247360334,-500.0,0.00019313,2]
[350958160,1738247360358,-1138.31,0.00019313,2]
[350958161,1738247360380,-500.0,0.00019313,2]
[350958162,1738247360402,-500.0,0.00019313,2]
[350958163,1738247360428,-1408.52,0.00019313,2]
[350958164,1738247360452,-656.22,0.00019313,2]
[350958165,1738247360473,-500.0,0.00019314,2]
[350958166,1738247360495,-77.97970952,0.00019314,2]
[350958203,1738247432411,-780.2937418,0.00018434,2]
[350958204,1738247432422,-1142.37412148,0.000189,2]
[350958205,1738247432433,-300.0,0.00019175,2]
[350958206,1738247432443,-563.76,0.00019176,2]
[350958207,1738247432454,-500.0,0.00019176,2]
[350958208,1738247432464,-820.95,0.00019176,2]
[350958209,1738247432476,-500.0,0.00019176,2]
[350958210,1738247432486,-500.0,0.00019176,2]
[350958211,1738247432496,-500.0,0.00019176,2]
[350958212,1738247432506,-500.0,0.00019176,2]
[350958213,1738247432516,-500.0,0.00019176,2]
[350958214,1738247432526,-500.0,0.00019176,2]
[350958215,1738247432536,-518.22,0.00019176,2]
[350958216,1738247432546,-606.06,0.00019176,2]
[350958217,1738247432556,-500.0,0.00019177,2]
[350958218,1738247432567,-500.0,0.00019177,2]
[350958219,1738247432577,-500.0,0.00019177,2]
[350958220,1738247432587,-500.0,0.00019177,2]
[350958221,1738247432597,-322.09446542,0.00019177,2]
[350958222,1738247432611,-500.0,0.00019177,2]
[350958223,1738247432620,-2126.3,0.00019177,2]
[350958224,1738247432630,-563.76,0.00019313,2]
[350958226,1738247432640,-500.0,0.00019313,2]
[350958227,1738247432649,-820.95,0.00019313,2]
[350958229,1738247432659,-500.0,0.00019313,2]
[350958230,1738247432668,-500.0,0.00019313,2]
[350958232,1738247432678,-500.0,0.00019313,2]
[350958234,1738247432688,-500.0,0.00019313,2]
[350958235,1738247432697,-500.0,0.00019313,2]
[350958236,1738247432707,-500.0,0.00019313,2]
[350958237,1738247432717,-518.22,0.00019313,2]
[350958238,1738247432726,-606.06,0.00019313,2]
[350958239,1738247432738,-422.02029048,0.00019314,2]
[350958240,1738247432748,-500.0,0.00019314,2]
[350958241,1738247432758,-500.0,0.00019314,2]
[350958242,1738247432769,-504.49856839,0.00019314,2]
[350958243,1738247432780,-500.0,0.00019314,2]
[350958244,1738247432790,-1000.0,0.00019314,2]
[350958245,1738247432925,-500.0,0.00019314,2]
[350958246,1738247432935,-503.84606224,0.00019314,2]
[350958247,1738247432945,-500.0,0.00019314,2]
[350958248,1738247432955,-500.0,0.00019314,2]
[350958249,1738247432965,-7848.53,0.00019314,2]
[350958250,1738247432975,-500.0,0.00019314,2]
[350958251,1738247432985,-955.91,0.00019314,2]
[350958252,1738247432996,-500.0,0.00019314,2]
[350958253,1738247433006,-500.0,0.00019314,2]
[350958254,1738247433016,-182.92,0.00019314,2]
[350958255,1738247433026,-617.08,0.00019314,2]
[350958256,1738247433036,-500.0,0.00019314,2]
[350958257,1738247433047,-500.0,0.00019314,2]
[350958258,1738247433057,-500.0,0.00019314,2]
[350958259,1738247433067,-500.0,0.00019314,2]
[350958260,1738247433077,-500.0,0.00019314,2]
[350958261,1738247433090,-500.0,0.00019314,2]
[350958262,1738247433102,-500.0,0.00019314,2]
[350958263,1738247433112,-500.0,0.00019314,2]
[350958264,1738247433123,-510.47655231,0.00019314,2]
[350958265,1738247433133,-500.0,0.00019314,2]
[350958266,1738247433143,-500.0,0.00019314,2]
[350958267,1738247433153,-500.0,0.00019314,2]
[350958268,1738247433164,-500.0,0.00019314,2]
[350958269,1738247433175,-500.0,0.00019314,2]
[350958270,1738247433185,-500.0,0.00019314,2]
[350958271,1738247433195,-500.0,0.00019314,2]
[350958272,1738247433204,-500.0,0.00019314,2]
[350958273,1738247433214,-500.0,0.00019314,2]
[350958274,1738247433224,-2126.3,0.00019314,2]
[350958275,1738247433234,-474.4673915,0.0001945,2]
[350958276,1738247433244,-1138.31,0.0001945,2]
[350958277,1738247433253,-500.0,0.0001945,2]
[350958278,1738247433263,-500.0,0.0001945,2]
[350958279,1738247433273,-1408.52,0.0001945,2]
[350958280,1738247433283,-656.22,0.0001945,2]
[350958281,1738247433293,-563.76,0.0001945,2]
[350958282,1738247433303,-500.0,0.0001945,2]
[350958283,1738247433313,-820.95,0.0001945,2]
[350958284,1738247433322,-500.0,0.0001945,2]
[350958285,1738247433332,-500.0,0.0001945,2]
[350958286,1738247433342,-500.0,0.0001945,2]
[350958287,1738247433357,-500.0,0.0001945,2]
[350958288,1738247433367,-500.0,0.0001945,2]
[350958289,1738247433377,-518.22,0.0001945,2]
[350958290,1738247433387,-606.06,0.0001945,2]
[350958291,1738247433397,-500.0,0.00019451,2]
[350958292,1738247433407,-500.0,0.00019451,2]
[350958293,1738247433417,-500.0,0.00019451,2]
[350958294,1738247433427,-500.0,0.00019451,2]
[350958295,1738247433437,-500.0,0.00019451,2]
[350958296,1738247433448,-1000.0,0.00019451,2]
[350958297,1738247433458,-500.0,0.00019451,2]
[350958298,1738247433468,-500.0,0.00019451,2]
[350958299,1738247433478,-500.0,0.00019451,2]
[350958300,1738247433489,-7848.53,0.00019451,2]
[350958301,1738247433499,-500.0,0.00019451,2]
[350958302,1738247433509,-955.91,0.00019451,2]
[350958303,1738247433519,-500.0,0.00019451,2]
[350958304,1738247433529,-500.0,0.00019451,2]
[350958305,1738247433538,-617.08,0.00019451,2]
[350958306,1738247433548,-500.0,0.00019451,2]
[350958307,1738247433557,-500.0,0.00019451,2]
[350958308,1738247433567,-500.0,0.00019451,2]
[350958309,1738247433576,-500.0,0.00019451,2]
[350958310,1738247433586,-500.0,0.00019451,2]
[350958311,1738247433596,-500.0,0.00019451,2]
[350958312,1738247433609,-500.0,0.00019451,2]
[350958313,1738247433619,-500.0,0.00019451,2]
[350958314,1738247433628,-500.0,0.00019451,2]
[350958315,1738247433638,-500.0,0.00019451,2]
[350958316,1738247433648,-500.0,0.00019451,2]
[350958317,1738247433657,-500.0,0.00019451,2]
[350958318,1738247433667,-500.0,0.00019451,2]
[350958319,1738247433677,-500.0,0.00019451,2]
[350958320,1738247433687,-500.0,0.00019451,2]
[350958321,1738247433697,-500.0,0.00019451,2]
[350958322,1738247433707,-500.0,0.00019451,2]
[350958323,1738247433716,-299.99880763,0.00019451,2]
[350958350,1738247438115,-549.03653221,0.00019451,2]
[350958353,1738247438132,-615.17290421,0.00019451,2]
[350958355,1738247438144,-310.66551479,0.00019451,2]
[350958357,1738247438156,-351.42624116,0.00019451,2]
[350958359,1738247438165,-511.24357712,0.0001952,2]
[350958404,1738247440392,-500.0,0.00019177,2]
[350958406,1738247440403,-566.52731293,0.00019314,2]
[350958408,1738247440412,-42.16510999,0.0001952,2]
[350958410,1738247440422,-500.0,0.00019524,2]
[350958412,1738247440432,-500.0,0.00019587,2]
[350958413,1738247440442,-1138.31,0.00019587,2]
[350958415,1738247440451,-500.0,0.00019587,2]
[350958418,1738247440461,-500.0,0.00019587,2]
[350958419,1738247440472,-1408.52,0.00019587,2]
[350958421,1738247440482,-656.22,0.00019587,2]
[350958424,1738247440493,-563.76,0.00019587,2]
[350958426,1738247440502,-500.0,0.00019587,2]
[350958427,1738247440512,-820.95,0.00019587,2]
[350958429,1738247440522,-500.0,0.00019587,2]
[350958431,1738247440531,-500.0,0.00019587,2]
[350958433,1738247440540,-500.0,0.00019587,2]
[350958434,1738247440550,-500.0,0.00019587,2]
[350958436,1738247440559,-500.0,0.00019587,2]
[350958438,1738247440569,-518.22,0.00019587,2]
[350958439,1738247440579,-606.06,0.00019587,2]
[350958441,1738247440588,-500.0,0.00019588,2]
[350958443,1738247440599,-500.0,0.00019588,2]
[350958445,1738247440613,-500.0,0.00019588,2]
[350958447,1738247440622,-302.36961841,0.00019588,2]
[350958448,1738247440632,-1000.0,0.00019588,2]
[350958449,1738247440641,-647.76,0.00019588,2]
[350958450,1738247440651,-500.0,0.00019588,2]
[350958451,1738247440660,-7848.53,0.00019588,2]
[350958453,1738247440670,-500.0,0.00019588,2]
[350958455,1738247440680,-955.91,0.00019588,2]
[350958457,1738247440690,-500.0,0.00019588,2]
[350958458,1738247440700,-617.08,0.00019588,2]
[350958459,1738247440710,-200.35217132,0.00019588,2]
[350958460,1738247440720,-500.0,0.00019588,2]
[350958461,1738247440729,-500.0,0.00019588,2]
[350958462,1738247440739,-500.0,0.00019588,2]
[350958463,1738247440749,-500.0,0.00019588,2]
[350958464,1738247440759,-500.0,0.00019588,2]
[350958465,1738247440768,-500.0,0.00019588,2]
[350958466,1738247440778,-503.35919055,0.00019588,2]
[350958467,1738247440787,-500.0,0.00019588,2]
[350958468,1738247440797,-500.0,0.00019588,2]
[350958469,1738247440807,-500.0,0.00019588,2]
[350958470,1738247440817,-500.0,0.00019588,2]
[350958471,1738247440826,-500.0,0.00019588,2]
[350958472,1738247440836,-500.0,0.00019588,2]
[350958473,1738247440845,-500.0,0.00019588,2]
[350958474,1738247440858,-500.0,0.00019588,2]
[350958475,1738247440867,-2126.3,0.00019588,2]
[350958476,1738247440877,-1255.97264027,0.000196,5]
[350958494,1738247444745,-500.0,0.00019176,2]
[350958496,1738247444755,-18038.30755379,0.000196,5]
[350958498,1738247444764,-1138.31,0.00019724,2]
[350958500,1738247444774,-500.0,0.00019724,2]
[350958502,1738247444784,-1408.52,0.00019724,2]
[350958504,1738247444794,-656.22,0.00019724,2]
[350958506,1738247444803,-563.76,0.00019724,2]
[350958508,1738247444813,-500.0,0.00019724,2]
[350958509,1738247444823,-820.95,0.00019724,2]
[350958510,1738247444833,-500.0,0.00019724,2]
[350958511,1738247444842,-500.0,0.00019724,2]
[350958513,1738247444852,-500.0,0.00019724,2]
[350958515,1738247444865,-500.0,0.00019724,2]
[350958516,1738247444874,-518.22,0.00019724,2]
[350958517,1738247444884,-500.0,0.00019724,2]
[350958518,1738247444893,-606.06,0.00019724,2]
[350958519,1738247444903,-500.0,0.00019724,2]
[350958520,1738247444913,-500.0,0.00019724,2]
[350958521,1738247444923,-419.08633192,0.00019724,2]
[350958522,1738247444933,-156.1729452,0.00019724,2]
[350958523,1738247444943,-500.0,0.00019724,2]
[350958524,1738247444953,-500.0,0.00019724,2]
[350958525,1738247444962,-500.0,0.00019724,2]
[350958526,1738247444972,-500.0,0.00019724,2]
[350958527,1738247444981,-500.0,0.00019724,2]
[350958528,1738247444991,-500.0,0.00019724,2]
[350958529,1738247445000,-500.0,0.00019724,2]
[350958530,1738247445010,-500.0,0.00019724,2]
[350958531,1738247445019,-500.0,0.00019724,2]
[350958532,1738247445029,-500.0,0.00019724,2]
[350958533,1738247445038,-500.0,0.00019724,2]
[350958534,1738247445048,-500.0,0.00019724,2]
[350958535,1738247445058,-626.25236878,0.00019724,2]
[350958536,1738247445068,-500.0,0.00019724,2]
[350958537,1738247445079,-500.0,0.00019724,2]
[350958538,1738247445089,-500.0,0.00019724,2]
[350958539,1738247445099,-500.0,0.00019724,2]
[350958540,1738247445111,-500.0,0.00019724,2]
[350958541,1738247445120,-500.0,0.00019724,2]
[350958542,1738247445129,-500.0,0.00019724,2]
[350958543,1738247445139,-548.08503849,0.00019724,2]
[350958544,1738247445149,-500.0,0.00019724,2]
[350958545,1738247445160,-500.0,0.00019724,2]
[350958546,1738247445169,-500.0,0.00019724,2]
[350958547,1738247445178,-500.0,0.00019724,2]
[350958548,1738247445188,-215.21506866,0.00019724,2]
[350958549,1738247445198,-500.0,0.00019724,2]
[350958550,1738247445208,-500.0,0.00019724,2]
[350958551,1738247445218,-500.0,0.00019724,2]
[350958552,1738247445227,-500.0,0.00019724,2]
[350958553,1738247445236,-500.0,0.00019724,2]
[350958554,1738247445245,-500.0,0.00019724,2]
[350958555,1738247445254,-500.0,0.00019724,2]
[350958556,1738247445263,-500.0,0.00019724,2]
[350958557,1738247445273,-500.0,0.00019724,2]
[350958558,1738247445282,-500.0,0.00019724,2]
[350958559,1738247445292,-500.0,0.00019724,2]
[350958560,1738247445302,-500.0,0.00019724,2]
[350958561,1738247445311,-500.0,0.00019725,2]
[350958562,1738247445320,-331.72,0.00019725,2]
[350958563,1738247445330,-500.0,0.00019725,2]
[350958564,1738247445339,-304.78044685,0.00019725,2]
[350958565,1738247445348,-500.0,0.00019725,2]
[350958566,1738247445358,-7848.53,0.00019725,2]
[350958567,1738247445368,-500.0,0.00019725,2]
[350958568,1738247445377,-955.91,0.00019725,2]
[350958569,1738247445387,-500.0,0.00019725,2]
[350958570,1738247445396,-617.08,0.00019725,2]
[350958571,1738247445406,-500.0,0.00019725,2]
[350958572,1738247445416,-500.0,0.00019725,2]
[350958573,1738247445425,-500.0,0.00019725,2]
[350958574,1738247445434,-500.0,0.00019725,2]
[350958575,1738247445444,-500.0,0.00019725,2]
[350958576,1738247445454,-500.0,0.00019725,2]
[350958577,1738247445464,-500.0,0.00019725,2]
[350958578,1738247445473,-154.97391082,0.00019725,2]
[350958579,1738247445484,-500.0,0.00019725,2]
[350958580,1738247445493,-500.0,0.00019725,2]
[350958581,1738247445504,-500.0,0.00019725,2]
[350958582,1738247445513,-500.0,0.00019725,2]
[350958583,1738247445523,-2126.3,0.00019725,2]
[350958584,1738247445532,-500.0,0.00019861,2]
[350958585,1738247445542,-1138.31,0.00019861,2]
[350958586,1738247445552,-500.0,0.00019861,2]
[350958587,1738247445563,-1408.52,0.00019861,2]
[350958588,1738247445572,-499.0,0.00019861,2]
[350958589,1738247445582,-656.22,0.00019861,2]
[350958590,1738247445592,-563.76,0.00019861,2]